Workbook

Sheet Дети 3-7 лет
B1: МБДОУ д/с № 362
A2: Прием пищи | B2: Блюдо | C2: Выход | D2: Калорийность | E2: Белки | F2: Жиры | G2: Углеводы
A3: Завтрак | B3: ='[1]Дневной рацион, Дети 3-7 лет, '!D4 -> Омлет паровой натуральный с маслом . | C3: ='[1]Дневной рацион, Дети 3-7 лет, '!E4 -> 101 | D3: ='[1]Дневной рацион, Дети 3-7 лет, '!G4 -> 184.209 | E3: ='[1]Дневной рацион, Дети 3-7 лет, '!H4 -> 9.797 | F3: ='[1]Дневной рацион, Дети 3-7 лет, '!I4 -> 15.019 | G3: ='[1]Дневной рацион, Дети 3-7 лет, '!J4 -> 2.449
B4: ='[1]Дневной рацион, Дети 3-7 лет, '!D5 -> Бутерброды (батон) с маслом . | C4: ='[1]Дневной рацион, Дети 3-7 лет, '!E5 -> 37 | D4: ='[1]Дневной рацион, Дети 3-7 лет, '!G5 -> 154.343 | E4: ='[1]Дневной рацион, Дети 3-7 лет, '!H5 -> 1.692 | F4: ='[1]Дневной рацион, Дети 3-7 лет, '!I5 -> 11.629 | G4: ='[1]Дневной рацион, Дети 3-7 лет, '!J5 -> 10.572
B5: ='[1]Дневной рацион, Дети 3-7 лет, '!D6 -> КОФЕЙНЫЙ НАПИТОК С МОЛОКОМ . | C5: ='[1]Дневной рацион, Дети 3-7 лет, '!E6 -> 200 | D5: ='[1]Дневной рацион, Дети 3-7 лет, '!G6 -> 58.9 | E5: ='[1]Дневной рацион, Дети 3-7 лет, '!H6 -> 2.3 | F5: ='[1]Дневной рацион, Дети 3-7 лет, '!I6 -> 1.9 | G5: ='[1]Дневной рацион, Дети 3-7 лет, '!J6 -> 8.2
A6: Завтрак №2 | B6: яблоко свежее | C6: 141 | D6: 158
A8: Обед | B8: ='[1]Дневной рацион, Дети 3-7 лет, '!D8 -> кукуруза с зел.горошком (консервированный). | C8: ='[1]Дневной рацион, Дети 3-7 лет, '!E8 -> 44 | D8: ='[1]Дневной рацион, Дети 3-7 лет, '!G8 -> 15.352 | E8: ='[1]Дневной рацион, Дети 3-7 лет, '!H8 -> 0.587 | F8: ='[1]Дневной рацион, Дети 3-7 лет, '!I8 -> 0.098 | G8: ='[1]Дневной рацион, Дети 3-7 лет, '!J8 -> 3.032
B9: ='[1]Дневной рацион, Дети 3-7 лет, '!D9 -> Свекольник со сметаной. | C9: ='[1]Дневной рацион, Дети 3-7 лет, '!E9 -> 201 | D9: ='[1]Дневной рацион, Дети 3-7 лет, '!G9 -> 376.875 | E9: ='[1]Дневной рацион, Дети 3-7 лет, '!H9 -> 8.241 | F9: ='[1]Дневной рацион, Дети 3-7 лет, '!I9 -> 19.095 | G9: ='[1]Дневной рацион, Дети 3-7 лет, '!J9 -> 43.115
B10: ='[1]Дневной рацион, Дети 3-7 лет, '!D10 -> Голубцы ленивые со сметанным соусом. | C10: ='[1]Дневной рацион, Дети 3-7 лет, '!E10 -> 171 | D10: ='[1]Дневной рацион, Дети 3-7 лет, '!G10 -> 244.128 | E10: ='[1]Дневной рацион, Дети 3-7 лет, '!H10 -> 17.201 | F10: ='[1]Дневной рацион, Дети 3-7 лет, '!I10 -> 13.178 | G10: ='[1]Дневной рацион, Дети 3-7 лет, '!J10 -> 14.083
B11: ='[1]Дневной рацион, Дети 3-7 лет, '!D11 -> Компот из (кураги). | C11: ='[1]Дневной рацион, Дети 3-7 лет, '!E11 -> 197 | D11: ='[1]Дневной рацион, Дети 3-7 лет, '!G11 -> 20.134 | E11: ='[1]Дневной рацион, Дети 3-7 лет, '!H11 -> 0.355 | F11: ='[1]Дневной рацион, Дети 3-7 лет, '!I11 -> 0.02 | G11: ='[1]Дневной рацион, Дети 3-7 лет, '!J11 -> 4.63
B12: ='[1]Дневной рацион, Дети 3-7 лет, '!D12 -> Хлеб пшеничный | C12: ='[1]Дневной рацион, Дети 3-7 лет, '!E12 -> 40 | D12: ='[1]Дневной рацион, Дети 3-7 лет, '!G12 -> 0 | E12: ='[1]Дневной рацион, Дети 3-7 лет, '!H12 -> 0 | F12: ='[1]Дневной рацион, Дети 3-7 лет, '!I12 -> 0 | G12: ='[1]Дневной рацион, Дети 3-7 лет, '!J12 -> 0
B13: ='[1]Дневной рацион, Дети 3-7 лет, '!D13 -> Хлеб ржаной | C13: ='[1]Дневной рацион, Дети 3-7 лет, '!E13 -> 34 | D13: ='[1]Дневной рацион, Дети 3-7 лет, '!G13 -> 0 | E13: ='[1]Дневной рацион, Дети 3-7 лет, '!H13 -> 0 | F13: ='[1]Дневной рацион, Дети 3-7 лет, '!I13 -> 0 | G13: ='[1]Дневной рацион, Дети 3-7 лет, '!J13 -> 0
A15: Полдник | B15: ='[1]Дневной рацион, Дети 3-7 лет, '!D14 -> Соки овощные, фруктовые и ягодные. | C15: ='[1]Дневной рацион, Дети 3-7 лет, '!E14 -> 200 | D15: ='[1]Дневной рацион, Дети 3-7 лет, '!G14 -> 55 | E15: ='[1]Дневной рацион, Дети 3-7 лет, '!H14 -> 0.5 | F15: ='[1]Дневной рацион, Дети 3-7 лет, '!I14 -> 0 | G15: ='[1]Дневной рацион, Дети 3-7 лет, '!J14 -> 12.7
B16: ='[1]Дневной рацион, Дети 3-7 лет, '!D15 -> Печенье весовое | C16: ='[1]Дневной рацион, Дети 3-7 лет, '!E15 -> 34 | D16: ='[1]Дневной рацион, Дети 3-7 лет, '!G15 -> 141.78 | E16: ='[1]Дневной рацион, Дети 3-7 лет, '!H15 -> 2.55 | F16: ='[1]Дневной рацион, Дети 3-7 лет, '!I15 -> 3.332 | G16: ='[1]Дневной рацион, Дети 3-7 лет, '!J15 -> 25.296
A18: Ужин | B18: ='[1]Дневной рацион, Дети 3-7 лет, '!D16 -> Пудинг манный с повидлом . | C18: ='[1]Дневной рацион, Дети 3-7 лет, '!E16 -> 177 | D18: ='[1]Дневной рацион, Дети 3-7 лет, '!G16 -> 334.219 | E18: ='[1]Дневной рацион, Дети 3-7 лет, '!H16 -> 9.788 | F18: ='[1]Дневной рацион, Дети 3-7 лет, '!I16 -> 8.018 | G18: ='[1]Дневной рацион, Дети 3-7 лет, '!J16 -> 55.704
B19: ='[1]Дневной рацион, Дети 3-7 лет, '!D17 -> Кисель из ягод (смородина). | C19: ='[1]Дневной рацион, Дети 3-7 лет, '!E17 -> 198 | D19: ='[1]Дневной рацион, Дети 3-7 лет, '!G17 -> 10.059 | E19: ='[1]Дневной рацион, Дети 3-7 лет, '!H17 -> 0.04 | F19: ='[1]Дневной рацион, Дети 3-7 лет, '!I17 -> 0.02 | G19: ='[1]Дневной рацион, Дети 3-7 лет, '!J17 -> 2.436
B20: ='[1]Дневной рацион, Дети 3-7 лет, '!D18 -> Хлеб пшеничный | C20: ='[1]Дневной рацион, Дети 3-7 лет, '!E18 -> 20 | D20: ='[1]Дневной рацион, Дети 3-7 лет, '!G18 -> 0 | E20: ='[1]Дневной рацион, Дети 3-7 лет, '!H18 -> 0 | F20: ='[1]Дневной рацион, Дети 3-7 лет, '!I18 -> 0 | G20: ='[1]Дневной рацион, Дети 3-7 лет, '!J18 -> 0
D21: ='[1]Дневной рацион, Дети 3-7 лет, '!G25 -> 0 | E21: ='[1]Дневной рацион, Дети 3-7 лет, '!H25 -> 0 | F21: ='[1]Дневной рацион, Дети 3-7 лет, '!I25 -> 0 | G21: ='[1]Дневной рацион, Дети 3-7 лет, '!J25 -> 0

Sheet Дети до 3-лет
A3: Прием пищи | B3: Блюдо | C3: Выход | D3: Калорийность | E3: Белки | F3: Жиры | G3: Углеводы
A4: Завтрак | B4: ='[2]Дневной рацион, Дети до 3х лет'!D4 -> Омлет паровой натуральный с маслом . | C4: ='[2]Дневной рацион, Дети до 3х лет'!E4 -> 81 | D4: ='[1]Дневной рацион, Дети 3-7 лет, '!G4 -> 184.209 | E4: ='[1]Дневной рацион, Дети 3-7 лет, '!H4 -> 9.797 | F4: ='[1]Дневной рацион, Дети 3-7 лет, '!I4 -> 15.019 | G4: ='[1]Дневной рацион, Дети 3-7 лет, '!J4 -> 2.449
B5: ='[2]Дневной рацион, Дети до 3х лет'!D5 -> Бутерброды (батон) с маслом . | C5: ='[2]Дневной рацион, Дети до 3х лет'!E5 -> 26 | D5: ='[1]Дневной рацион, Дети 3-7 лет, '!G5 -> 154.343 | E5: ='[1]Дневной рацион, Дети 3-7 лет, '!H5 -> 1.692 | F5: ='[1]Дневной рацион, Дети 3-7 лет, '!I5 -> 11.629 | G5: ='[1]Дневной рацион, Дети 3-7 лет, '!J5 -> 10.572
B6: ='[2]Дневной рацион, Дети до 3х лет'!D6 -> КОФЕЙНЫЙ НАПИТОК С МОЛОКОМ . | C6: ='[2]Дневной рацион, Дети до 3х лет'!E6 -> 170 | D6: ='[1]Дневной рацион, Дети 3-7 лет, '!G6 -> 58.9 | E6: ='[1]Дневной рацион, Дети 3-7 лет, '!H6 -> 2.3 | F6: ='[1]Дневной рацион, Дети 3-7 лет, '!I6 -> 1.9 | G6: ='[1]Дневной рацион, Дети 3-7 лет, '!J6 -> 8.2
A7: Завтрак №2 | B7: яблоко свежее | C7: 141 | D7: 158
A9: Обед | B9: ='[2]Дневной рацион, Дети до 3х лет'!D8 -> кукуруза с зел.горошком (консервированный). | C9: ='[2]Дневной рацион, Дети до 3х лет'!E8 -> 30 | D9: ='[1]Дневной рацион, Дети 3-7 лет, '!G8 -> 15.352 | E9: ='[1]Дневной рацион, Дети 3-7 лет, '!H8 -> 0.587 | F9: ='[1]Дневной рацион, Дети 3-7 лет, '!I8 -> 0.098 | G9: ='[1]Дневной рацион, Дети 3-7 лет, '!J8 -> 3.032
B10: ='[2]Дневной рацион, Дети до 3х лет'!D9 -> Свекольник со сметаной. | C10: ='[2]Дневной рацион, Дети до 3х лет'!E9 -> 171 | D10: ='[1]Дневной рацион, Дети 3-7 лет, '!G9 -> 376.875 | E10: ='[1]Дневной рацион, Дети 3-7 лет, '!H9 -> 8.241 | F10: ='[1]Дневной рацион, Дети 3-7 лет, '!I9 -> 19.095 | G10: ='[1]Дневной рацион, Дети 3-7 лет, '!J9 -> 43.115
B11: ='[2]Дневной рацион, Дети до 3х лет'!D10 -> Голубцы ленивые со сметанным соусом. | C11: ='[2]Дневной рацион, Дети до 3х лет'!E10 -> 151 | D11: ='[1]Дневной рацион, Дети 3-7 лет, '!G10 -> 244.128 | E11: ='[1]Дневной рацион, Дети 3-7 лет, '!H10 -> 17.201 | F11: ='[1]Дневной рацион, Дети 3-7 лет, '!I10 -> 13.178 | G11: ='[1]Дневной рацион, Дети 3-7 лет, '!J10 -> 14.083
B12: ='[2]Дневной рацион, Дети до 3х лет'!D11 -> Компот из (кураги). | C12: ='[2]Дневной рацион, Дети до 3х лет'!E11 -> 177 | D12: ='[1]Дневной рацион, Дети 3-7 лет, '!G11 -> 20.134 | E12: ='[1]Дневной рацион, Дети 3-7 лет, '!H11 -> 0.355 | F12: ='[1]Дневной рацион, Дети 3-7 лет, '!I11 -> 0.02 | G12: ='[1]Дневной рацион, Дети 3-7 лет, '!J11 -> 4.63
B13: ='[2]Дневной рацион, Дети до 3х лет'!D12 -> Хлеб пшеничный | C13: ='[2]Дневной рацион, Дети до 3х лет'!E12 -> 30 | D13: ='[1]Дневной рацион, Дети 3-7 лет, '!G12 -> 0 | E13: ='[1]Дневной рацион, Дети 3-7 лет, '!H12 -> 0 | F13: ='[1]Дневной рацион, Дети 3-7 лет, '!I12 -> 0 | G13: ='[1]Дневной рацион, Дети 3-7 лет, '!J12 -> 0
B14: ='[2]Дневной рацион, Дети до 3х лет'!D13 -> Хлеб ржаной | C14: ='[2]Дневной рацион, Дети до 3х лет'!E13 -> 29 | D14: ='[1]Дневной рацион, Дети 3-7 лет, '!G13 -> 0 | E14: ='[1]Дневной рацион, Дети 3-7 лет, '!H13 -> 0 | F14: ='[1]Дневной рацион, Дети 3-7 лет, '!I13 -> 0 | G14: ='[1]Дневной рацион, Дети 3-7 лет, '!J13 -> 0
A16: Полдник | B16: ='[2]Дневной рацион, Дети до 3х лет'!D14 -> Соки овощные, фруктовые и ягодные. | C16: ='[2]Дневной рацион, Дети до 3х лет'!E14 -> 160 | D16: ='[1]Дневной рацион, Дети 3-7 лет, '!G14 -> 55 | E16: ='[1]Дневной рацион, Дети 3-7 лет, '!H14 -> 0.5 | F16: ='[1]Дневной рацион, Дети 3-7 лет, '!I14 -> 0 | G16: ='[1]Дневной рацион, Дети 3-7 лет, '!J14 -> 12.7
B17: ='[2]Дневной рацион, Дети до 3х лет'!D15 -> Печенье весовое | C17: ='[2]Дневной рацион, Дети до 3х лет'!E15 -> 25 | D17: ='[1]Дневной рацион, Дети 3-7 лет, '!G15 -> 141.78 | E17: ='[1]Дневной рацион, Дети 3-7 лет, '!H15 -> 2.55 | F17: ='[1]Дневной рацион, Дети 3-7 лет, '!I15 -> 3.332 | G17: ='[1]Дневной рацион, Дети 3-7 лет, '!J15 -> 25.296
A19: Ужин | B19: ='[2]Дневной рацион, Дети до 3х лет'!D16 -> Пудинг манный с повидлом . | C19: ='[2]Дневной рацион, Дети до 3х лет'!E16 -> 147 | D19: ='[1]Дневной рацион, Дети 3-7 лет, '!G16 -> 334.219 | E19: ='[1]Дневной рацион, Дети 3-7 лет, '!H16 -> 9.788 | F19: ='[1]Дневной рацион, Дети 3-7 лет, '!I16 -> 8.018 | G19: ='[1]Дневной рацион, Дети 3-7 лет, '!J16 -> 55.704
B20: ='[2]Дневной рацион, Дети до 3х лет'!D17 -> Кисель из ягод (смородина). | C20: ='[2]Дневной рацион, Дети до 3х лет'!E17 -> 179 | D20: ='[1]Дневной рацион, Дети 3-7 лет, '!G17 -> 10.059 | E20: ='[1]Дневной рацион, Дети 3-7 лет, '!H17 -> 0.04 | F20: ='[1]Дневной рацион, Дети 3-7 лет, '!I17 -> 0.02 | G20: ='[1]Дневной рацион, Дети 3-7 лет, '!J17 -> 2.436
B21: ='[2]Дневной рацион, Дети до 3х лет'!D18 -> Хлеб пшеничный | C21: ='[2]Дневной рацион, Дети до 3х лет'!E18 -> 20 | D21: ='[1]Дневной рацион, Дети 3-7 лет, '!G18 -> 0 | E21: ='[1]Дневной рацион, Дети 3-7 лет, '!H18 -> 0 | F21: ='[1]Дневной рацион, Дети 3-7 лет, '!I18 -> 0 | G21: ='[1]Дневной рацион, Дети 3-7 лет, '!J18 -> 0
B22: ='[2]Дневной рацион, Дети до 3х лет'!D19 -> 0 | C22: ='[2]Дневной рацион, Дети до 3х лет'!E19 -> 0 | D22: ='[1]Дневной рацион, Дети 3-7 лет, '!G19 -> 0 | E22: ='[1]Дневной рацион, Дети 3-7 лет, '!H19 -> 0 | F22: ='[1]Дневной рацион, Дети 3-7 лет, '!I19 -> 0 | G22: ='[1]Дневной рацион, Дети 3-7 лет, '!J19 -> 0
